bitfinex-derivatives/quotes_ETHF0:USTF0_20250919
["timestamp","ask_amount","ask_price","bid_price","bid_amount"]
[1758244002827,3.75475146,4614.0,4613.5,0.1249]
[1758244003020,1.03612185,4613.7,4613.5,0.1249]
[1758244003213,0.219,4613.6,4613.5,0.4293]
[1758244004020,0.219,4613.6,4613.3,2.1688]
[1758244004221,1.03612185,4613.4,4613.3,2.1688]
[1758244004421,1.03612185,4613.4,4613.1,0.3044]
[1758244004617,0.219,4613.3,4613.1,0.3044]
[1758244004818,0.219,4613.3,4613.0,0.1249]
[1758244005021,0.219,4613.3,4613.1,0.3044]
[1758244005222,0.219,4613.3,4613.0,0.1249]
[1758244005924,0.219,4613.3,4613.1,0.3044]
[1758244006125,0.219,4613.3,4613.0,0.1465]
[1758244006323,0.219,4613.3,4613.1,0.3044]
[1758244006520,0.219,4613.3,4613.0,0.1465]
[1758244006727,0.219,4613.3,4613.1,0.3044]
[1758244007227,0.219,4613.3,4613.0,0.1465]
[1758244007528,3.2078,4613.5,4613.4,0.7028]
[1758244007726,3.2078,4613.5,4613.1,0.3044]
[1758244007727,3.97388967,4613.5,4613.1,0.3044]
[1758244007925,0.77207788,4613.4,4613.1,0.3044]
[1758244008121,0.54708967,4613.3,4613.1,0.3044]
[1758244008323,0.76608967,4613.2,4613.1,0.3044]
[1758244009019,0.54708967,4613.2,4613.1,0.7028]
[1758244009222,0.219,4613.2,4613.1,0.7028]
[1758244009421,0.76608967,4613.2,4613.1,0.7028]
[1758244011432,0.76608967,4613.2,4613.1,0.3044]
[1758244011833,0.76608967,4613.2,4613.1,0.5005]
[1758244012520,0.219,4613.2,4613.1,0.3984]
[1758244012724,0.219,4613.2,4613.1,0.7028]
[1758244014329,0.76642179,4613.2,4613.1,0.7028]
[1758244016433,0.54742179,4613.2,4613.1,0.7028]
[1758244016730,3.2078,4614.1,4614.0,0.8529]
[1758244016922,4.2040912,4614.1,4614.0,0.8529]
[1758244017727,3.9850912,4614.1,4614.0,0.8529]
[1758244017933,3.2078,4614.7,4614.6,0.7295]
[1758244018232,4.20429549,4614.7,4614.6,0.7295]
[1758244020540,3.98529549,4614.7,4614.6,0.7295]
[1758244020737,3.98529549,4614.7,4614.6,4.22448975]
[1758244020943,3.75561235,4614.7,4614.6,0.7295]
[1758244021145,0.54781235,4614.7,4614.6,0.7295]
[1758244021445,3.2078,4615.3,4615.2,0.709]
[1758244021743,4.20479111,4615.3,4615.2,0.709]
[1758244024744,7.69978086,4615.3,4614.7,0.2948]
[1758244024944,0.77799111,4615.2,4614.6,0.2948]
[1758244025241,0.99699111,4615.1,4615.0,0.1226]
[1758244025445,0.99699111,4615.1,4615.0,0.4174]
[1758244025946,0.99699111,4615.1,4615.0,0.8316]
[1758244026451,0.99699111,4615.1,4615.0,0.4174]
[1758244026844,0.99699111,4615.1,4615.0,0.6257]
[1758244028346,0.99674745,4615.1,4615.0,0.6257]
[1758244031444,0.77774745,4615.1,4615.0,0.4174]
[1758244031644,6.2496715,4615.1,4614.8,0.0216]
[1758244031849,6.2496715,4615.1,4613.2,2.1688]
[1758244031850,0.6756,4613.3,4613.2,2.1688]
[1758244032051,2.47902445,4613.3,4613.2,2.1688]
[1758244032351,5.91636674,4613.3,4613.2,2.1688]
[1758244032744,5.91636674,4613.3,4612.5,0.1226]
[1758244032941,0.4069,4612.6,4612.5,0.5368]
[1758244033246,0.6259,4612.6,4612.5,0.5368]
[1758244033842,0.6259,4612.6,4612.5,0.8316]
[1758244035955,0.4069,4612.3,4612.1,2.1688]
[1758244036152,4.88202021,4612.2,4611.4,0.2948]
[1758244036351,3.8834,4611.7,4611.1,0.2948]
[1758244036653,4.88202021,4611.7,4611.1,0.2948]
[1758244038448,0.4069,4611.2,4611.1,0.5031]
[1758244038753,0.6259,4611.2,4611.1,0.5031]
[1758244038949,0.8946,4611.2,4611.1,0.5031]
[1758244039253,4.1024,4611.2,4611.1,0.2948]
[1758244039554,4.1024,4611.2,4611.1,0.5031]
[1758244039855,3.8337,4611.2,4611.1,0.5031]
[1758244041147,3.8337,4611.2,4610.6,2.1688]
[1758244041148,0.6756,4610.7,4610.6,2.1688]
[1758244041349,8.37509408,4610.7,4610.6,2.1688]
[1758244041756,8.37509408,4610.7,4609.9,0.2948]
[1758244041942,0.6756,4610.1,4610.0,0.4174]
[1758244042146,0.8946,4610.1,4610.0,0.2948]
[1758244042352,0.8946,4610.1,4609.8,0.0216]
[1758244042549,0.6756,4609.9,4609.8,0.3164]
[1758244042748,0.8946,4609.9,4609.8,0.3164]
[1758244043953,0.8946,4609.9,4609.8,0.5247]
[1758244044349,0.6259,4609.9,4609.8,0.5247]
[1758244046054,0.6259,4609.9,4609.8,0.5031]
[1758244046253,0.8946,4609.9,4609.8,0.2948]
[1758244049453,4.3898958,4609.9,4609.5,0.4262]
[1758244049758,3.8773,4609.6,4609.5,0.3036]
[1758244049953,4.0963,4609.6,4609.1,0.3036]
[1758244050149,0.2697,4609.5,4609.0,0.4262]
[1758244050456,0.3998,4609.1,4609.0,0.62]
[1758244050660,0.6188,4609.1,4609.0,0.62]
[1758244051449,0.8885,4609.1,4609.0,0.62]
[1758244051851,0.6188,4609.1,4609.0,0.62]
[1758244052054,0.6188,4609.1,4609.0,0.8199]
[1758244054956,0.8885,4609.1,4609.0,0.8199]
[1758244055158,4.0963,4609.1,4609.0,0.3036]
[1758244055463,3.8266,4609.1,4608.3,0.0216]
[1758244055660,0.3998,4608.7,4608.6,0.4974]
[1758244055862,0.8885,4608.7,4608.6,0.4974]
[1758244056762,0.6188,4608.7,4608.6,0.6973]
[1758244059165,1.16618108,4608.7,4608.6,0.6973]
[1758244060267,1.39811394,4608.7,4608.6,0.6973]
[1758244060971,0.97008108,4608.7,4608.6,0.6973]
[1758244061189,1.20237086,4608.7,4608.6,0.6973]
[1758244062262,1.39847086,4608.7,4608.6,0.6973]
[1758244062472,1.17947086,4608.7,4608.6,0.6973]
[1758244062765,1.39847086,4608.7,4608.6,0.6973]
[1758244065361,1.40158189,4608.7,4608.6,0.6973]
[1758244066566,1.67128189,4608.7,4608.6,0.6973]
[1758244066760,1.40158189,4608.7,4608.6,0.6973]
[1758244067870,1.67128189,4608.7,4608.6,0.6973]
[1758244068669,1.5520028,4608.8,4608.6,9.8981367]
[1758244068865,0.22,4610.2,4609.7,0.3937]
[1758244069065,0.22,4610.2,4610.1,1.58532835]
[1758244069066,0.9131,4610.2,4610.1,1.58532835]
[1758244072777,0.9131,4610.2,4610.1,0.6973]
[1758244073269,1.80112835,4610.2,4610.1,0.6973]
[1758244075268,0.9131,4610.2,4610.1,1.58532835]
[1758244076068,4.7598028,4610.5,4610.1,1.58532835]
[1758244076369,4.7598028,4610.5,4610.0,0.121]
[1758244076370,3.2078,4610.5,4610.4,0.7201]
[1758244076675,3.4278,4610.5,4610.4,0.7201]
[1758244076869,3.4278,4610.5,4610.4,1.60812835]
[1758244078470,5.14492835,4610.5,4610.1,0.3154]
[1758244078674,1.58592835,4610.1,4610.0,0.2019]
[1758244078875,1.80592835,4610.1,4610.0,0.2019]
[1758244079477,1.80592835,4610.1,4610.0,0.5173]
[1758244080178,1.5520028,4610.9,4610.8,0.727]
[1758244080473,1.51142835,4610.9,4610.6,0.3154]
[1758244080680,0.6979,4610.2,4610.1,0.727]
[1758244080881,1.45196889,4610.2,4610.1,0.727]
[1758244081276,0.94936889,4610.2,4610.1,0.727]
[1758244081677,1.45196889,4610.2,4610.1,0.727]
[1758244082374,1.15646889,4610.2,4610.1,0.727]
[1758244082569,1.24486889,4610.2,4610.1,0.727]
[1758244082770,1.45196889,4610.2,4610.1,0.5173]
[1758244082971,1.45196889,4610.2,4609.6,0.337]
[1758244083170,0.1953,4609.7,4609.6,0.7486]
[1758244083374,0.94936889,4609.7,4609.6,0.7486]
[1758244083581,0.75406889,4609.7,4609.6,0.727]
[1758244084285,0.75406889,4609.7,4609.6,1.1173]
[1758244084472,0.53306889,4609.7,4609.6,1.1173]
[1758244084677,0.53306889,4609.7,4609.6,4.727]
[1758244085882,2.98170441,4610.9,4609.6,4.727]
[1758244085883,0.4123,4611.5,4611.4,0.5644]
[1758244086080,0.4123,4611.5,4611.4,3.54610441]
[1758244086482,0.419,4612.0,4611.9,0.4116]
[1758244086685,0.641,4612.0,4611.9,0.4116]
[1758244086984,0.8363,4612.0,4611.9,0.4116]
[1758244087279,1.0434,4612.0,4611.9,0.4116]
[1758244087775,1.0434,4612.0,4611.9,0.2019]
[1758244091076,1.0434,4612.0,4611.9,0.4116]
[1758244091276,0.6143,4612.0,4611.9,3.39330441]
[1758244091478,0.6143,4612.0,4611.9,3.54610441]
[1758244091479,0.8363,4612.0,4611.9,3.54610441]
[1758244092588,3.2078,4612.1,4612.0,0.6259]
[1758244092885,3.2078,4612.9,4612.2,0.80167]
[1758244093088,0.222,4612.5,4612.4,3.54610441]
[1758244093483,0.5175,4612.5,4612.4,3.54610441]
[1758244095388,0.8296,4612.5,4612.4,0.4116]
[1758244095785,0.1168,4613.0,4612.9,0.2019]
[1758244095988,0.2955,4613.3,4612.9,3.39330441]
[1758244096191,3.9057,4613.4,4613.3,0.4116]
[1758244096687,4.1277,4613.4,4613.3,3.39330441]
[1758244097384,0.1953,4613.0,4612.9,3.18360441]
[1758244097591,0.6076,4613.0,4612.9,3.18360441]
[1758244097785,0.6076,4613.0,4612.9,3.39330441]
[1758244098088,0.6076,4613.0,4612.9,3.54610441]
[1758244100386,0.6076,4613.0,4612.9,3.39330441]
[1758244100691,0.4123,4613.0,4612.9,3.54610441]
[1758244100888,0.6343,4613.0,4612.9,3.54610441]
[1758244101093,1.0367,4613.0,4612.9,3.39330441]
[1758244108694,1.0367,4613.0,4612.9,0.4116]
[1758244108891,0.7158,4612.8,4612.7,5.275]
[1758244109096,0.7158,4612.8,4612.7,5.4856]
[1758244109296,0.7158,4612.8,4612.7,5.6932]
[1758244109996,0.222,4612.8,4612.7,8.82700441]
[1758244110593,0.3068,4613.1,4612.7,8.82700441]
[1758244110898,0.3068,4613.0,4612.9,0.5703]
[1758244111299,0.83042151,4613.0,4612.9,0.5703]
[1758244112100,0.3068,4613.0,4612.9,0.5703]
[1758244113300,0.6418,4613.0,4612.9,0.5703]
[1758244113496,0.6418,4613.0,4612.9,0.4182]
[1758244113800,0.6418,4613.0,4612.9,1.45507857]
[1758244114403,1.16691727,4613.0,4612.9,1.45507857]
[1758244114703,1.16691727,4613.0,4612.9,1.60717857]
[1758244115101,1.16692156,4613.0,4612.9,1.60717857]
[1758244118000,1.16692156,4613.0,4612.9,1.45507857]
[1758244118804,1.36752156,4613.0,4612.9,1.45507857]
[1758244119002,1.06072156,4613.0,4612.7,1.03687857]
[1758244119206,0.7158,4612.7,4612.6,0.0216]
[1758244119500,1.35248818,4612.7,4611.6,0.221]
[1758244119705,0.7158,4611.9,4611.8,3.41627857]
[1758244119913,1.24092156,4611.9,4611.8,3.41627857]
[1758244120204,1.24092156,4611.9,4611.8,1.24747857]
[1758244120511,0.7158,4611.6,4611.5,1.24747857]
[1758244120810,1.24092156,4611.6,4611.5,1.24747857]
[1758244121202,0.83192156,4611.6,4611.5,1.60717857]
[1758244121811,0.83192156,4611.6,4611.5,1.45507857]
[1758244121812,1.04032156,4611.6,4611.5,1.45507857]
[1758244122104,1.04032156,4611.6,4611.5,1.60717857]
[1758244122311,1.04032156,4611.6,4611.5,1.45507857]
[1758244122609,1.24092156,4611.6,4611.5,0.4182]
[1758244122912,1.24092156,4611.6,4611.5,1.24747857]
[1758244123404,1.24092156,4611.6,4611.5,1.03687857]
[1758244123606,1.45571057,4611.6,4611.5,1.03687857]
[1758244123904,1.45571057,4611.6,4611.5,1.24747857]
[1758244124107,1.24092156,4611.6,4611.5,1.24747857]
[1758244124913,0.7158,4611.4,4611.3,5.3982]
[1758244125113,1.24238668,4611.4,4611.3,3.22727857]
[1758244125305,0.7158,4611.4,4611.3,3.22727857]
[1758244125506,1.24222179,4611.4,4611.3,3.22727857]
[1758244126012,1.24222179,4611.4,4611.3,3.41627857]
[1758244126209,0.7158,4611.4,4611.3,3.41627857]
[1758244127312,0.7158,4611.4,4611.3,3.62387857]
[1758244129013,0.7158,4611.4,4611.3,3.20567857]
[1758244129314,0.7158,4611.4,4611.3,3.41627857]
[1758244129514,0.7158,4611.4,4611.3,1.24747857]
[1758244130016,0.7158,4611.4,4611.3,1.45507857]
[1758244130218,0.5152,4611.4,4611.3,1.60717857]
[1758244130418,0.7362,4611.4,4611.3,1.45507857]
[1758244130715,0.9368,4611.4,4611.3,1.45507857]
[1758244131917,0.7362,4611.4,4611.3,1.60717857]
[1758244133518,0.7362,4611.4,4611.3,1.45507857]
[1758244137124,0.9479,4611.4,4611.3,1.45507857]
[1758244138228,0.5152,4611.4,4611.3,1.60767857]
[1758244139628,0.5152,4611.4,4611.3,1.45507857]
[1758244140225,0.7164,4611.4,4611.3,1.45507857]
[1758244141824,5.97013857,4611.4,4611.1,0.0216]
[1758244142030,0.4018,4610.7,4609.6,3.3604]
[1758244142323,5.68785795,4610.7,4609.6,3.2078]
[1758244142523,9.90474795,4610.7,4609.6,4.24467857]
[1758244143027,0.2006,4609.7,4609.6,1.44467857]
[1758244143321,0.6937,4609.7,4609.6,1.44467857]
[1758244150729,0.6937,4609.7,4609.6,1.03687857]
[1758244150931,0.8207,4609.5,4609.4,0.1973]
[1758244151728,0.8207,4609.5,4609.4,0.4078]
[1758244153336,0.8207,4609.5,4609.4,0.1973]
[1758244155928,0.6937,4609.2,4609.1,2.1688]
[1758244156122,0.9147,4609.2,4609.1,2.1688]
[1758244156729,0.8207,4608.5,4608.4,1.23417857]
[1758244157031,0.8207,4608.5,4608.4,1.44467857]
[1758244157231,0.6195,4608.5,4608.4,1.44467857]
[1758244157525,0.6195,4608.5,4608.4,1.59727857]
[1758244158230,0.4189,4608.5,4608.4,1.59727857]
[1758244159130,0.6195,4608.5,4608.4,1.59727857]
[1758244159338,0.8207,4608.5,4608.4,0.4078]
[1758244159533,0.8207,4608.5,4608.4,1.44467857]
[1758244160135,0.8207,4608.5,4608.1,2.1688]
[1758244160336,1.73057857,4608.2,4608.1,2.1688]
[1758244160539,0.6937,4608.2,4608.1,2.1688]
[1758244161334,0.6937,4608.2,4607.9,3.2078]
[1758244161539,0.127,4608.0,4607.9,3.2078]
[1758244161739,0.8207,4608.0,4607.9,3.2078]
[1758244162739,0.8207,4608.0,4607.5,0.221]
[1758244163440,0.6195,4607.5,4607.4,1.44467857]
[1758244164237,0.4189,4607.5,4607.4,1.59727857]
[1758244164543,0.6195,4608.0,4607.9,0.4078]
[1758244164839,0.8207,4608.0,4607.9,1.44467857]
[1758244166041,0.6195,4608.0,4607.9,1.59727857]
[1758244166242,0.6195,4608.0,4607.9,1.44467857]
[1758244166839,0.4189,4608.0,4607.9,1.59727857]
[1758244167045,0.4925,4608.2,4608.1,0.4078]
[1758244167342,0.6937,4608.2,4608.1,0.4078]
[1758244167735,0.2919,4609.0,4608.9,0.5604]
[1758244167952,0.221,4609.9,4608.9,1.83502857]
[1758244168141,0.2882,4609.3,4609.2,0.4212]
[1758244168444,0.2882,4609.3,4609.2,1.61067857]
[1758244168645,0.127,4610.0,4609.4,0.2118]
[1758244168841,0.5299,4610.0,4609.9,0.4212]
[1758244169042,1.05703318,4610.0,4609.9,0.4212]
[1758244169239,1.27634414,4610.0,4609.9,0.4212]
[1758244169437,1.56454414,4610.0,4609.9,0.4212]
[1758244169646,1.56454414,4610.0,4609.9,0.2118]
[1758244170545,1.56454414,4610.0,4609.7,1.03687857]
[1758244170745,0.8098,4609.5,4609.4,0.2118]
[1758244171049,0.8098,4609.5,4609.4,1.24867857]
[1758244171243,0.8098,4609.5,4609.4,0.2118]
[1758244171446,1.33773396,4609.5,4609.4,0.2118]
[1758244171745,0.8098,4609.5,4609.4,0.2118]
[1758244172250,0.8098,4609.5,4609.4,0.4212]
[1758244172451,0.8098,4609.5,4609.4,1.45807857]
[1758244173143,0.2882,4609.4,4609.0,0.39033]
[1758244173345,0.4809,4609.1,4609.0,0.81153]
[1758244173843,0.2882,4609.1,4609.0,0.96413]
[1758244174440,0.2882,4609.1,4609.0,2.73939268]
[1758244175750,0.6911,4609.1,4609.0,0.4212]
[1758244176049,0.6911,4609.1,4609.0,1.30883134]
[1758244177351,0.6911,4609.1,4609.0,2.19646268]
[1758244177952,0.6911,4609.1,4609.0,2.34906268]
[1758244178549,0.2882,4609.1,4609.0,2.34906268]
[1758244179355,0.4809,4609.1,4609.0,2.34906268]
[1758244179558,0.4809,4609.1,4609.0,2.19646268]
[1758244179854,0.4809,4609.1,4609.0,1.69916134]
[1758244180052,0.6911,4609.1,4609.0,1.30883134]
[1758244180455,0.6911,4609.1,4609.0,1.09943134]
[1758244180954,0.6911,4609.1,4609.0,1.48976134]
[1758244181253,0.6911,4609.1,4609.0,1.69916134]
[1758244182255,0.6911,4609.1,4609.0,0.81153]
[1758244182452,0.6911,4609.1,4609.0,1.69916134]
[1758244184261,0.2882,4609.4,4609.3,0.39031]
[1758244184454,0.6911,4609.4,4609.3,1.30883134]
[1758244186458,0.6911,4609.4,4609.3,1.09943134]
[1758244186658,0.6911,4609.4,4609.3,0.88763134]
[1758244188357,0.6911,4609.4,4609.3,1.09943134]
[1758244189148,0.6911,4609.4,4609.3,0.2118]
[1758244189358,0.8098,4609.0,4608.9,0.39035]
[1758244189553,0.5996,4609.0,4608.9,0.96415]
[1758244189753,0.2882,4609.0,4608.9,0.96415]
[1758244190059,0.5996,4609.0,4608.9,0.96415]
[1758244190554,0.4069,4609.0,4608.9,1.85178134]
[1758244191159,0.2882,4609.0,4608.9,2.73941268]
[1758244191452,0.1187,4609.5,4609.4,0.5738]
[1758244191453,0.3114,4609.5,4609.4,0.5738]
[1758244191658,0.3114,4609.5,4609.4,1.30883134]
[1758244191858,0.8098,4609.5,4609.4,1.30883134]
[1758244194060,0.8098,4609.5,4609.4,1.09943134]
[1758244195152,0.8098,4609.5,4609.0,0.39035]
[1758244195153,0.8098,4609.5,4608.8,0.54296]
[1758244195354,0.8098,4609.5,4609.4,0.88763134]
[1758244195658,1.3404944,4609.5,4609.4,0.88763134]
[1758244196152,2.22812574,4609.5,4609.4,0.88763134]
[1758244197260,2.44743585,4609.5,4609.4,0.88763134]
[1758244197460,2.44743585,4609.5,4609.4,1.08293134]
[1758244197461,1.55980451,4609.5,4609.4,1.08293134]
[1758244197853,1.55980451,4609.5,4609.4,0.88763134]
[1758244199566,1.55980451,4609.5,4609.4,1.08293134]
[1758244200667,1.55980451,4609.5,4609.4,0.88763134]
[1758244200874,0.6401,4609.0,4608.9,0.4113]
[1758244201170,0.844,4609.0,4608.9,1.08383134]
[1758244201368,0.844,4609.0,4608.9,1.27733134]
[1758244203367,0.844,4609.0,4608.9,1.66768134]
[1758244204766,0.844,4609.0,4608.9,1.27733134]
[1758244205266,0.844,4609.0,4608.9,0.3897]
[1758244205470,0.3114,4608.9,4608.7,5.3766]
[1758244205768,2.58584387,4608.8,4608.7,2.1688]
[1758244206165,2.58584387,4608.8,4608.5,0.0216]
[1758244206361,1.61333134,4608.6,4608.5,0.0216]
[1758244206557,2.36484387,4608.6,4608.5,0.0216]
[1758244207166,2.36484387,4608.6,4607.9,0.88763134]
[1758244207368,0.6401,4608.0,4607.9,1.27733134]
[1758244212778,0.844,4608.0,4607.9,1.08383134]
[1758244213281,0.844,4608.0,4607.9,1.27733134]
[1758244213882,0.844,4608.0,4607.9,1.43003134]
[1758244214183,0.844,4608.0,4607.9,1.27733134]
[1758244216582,0.844,4608.0,4607.9,0.3897]
[1758244216780,0.844,4608.0,4607.9,1.27733134]
[1758244218181,0.844,4608.0,4607.9,1.08383134]
[1758244223077,0.844,4608.0,4607.9,0.1962]
[1758244223283,0.844,4608.0,4607.7,4.09543134]
[1758244223482,0.4143,4607.8,4607.7,3.404]
[1758244223784,0.4143,4607.8,4607.7,4.29163134]
[1758244223785,0.7257,4607.8,4607.7,4.29163134]
[1758244229087,0.7257,4607.8,4607.7,4.48513134]
[1758244231485,1.61333134,4607.8,4607.5,0.0217]
[1758244231783,1.58753134,4607.6,4607.5,0.0217]
[1758244231987,2.3671742,4607.6,4607.5,0.0217]
[1758244232186,0.2013,4606.8,4606.7,2.5725]
[1758244232385,0.4973,4606.8,4606.7,2.5725]
[1758244233182,0.4973,4606.8,4606.7,2.7255]
[1758244233791,0.4973,4606.8,4606.7,0.5567]
[1758244234401,0.6999,4606.8,4606.7,0.4037]
[1758244234989,0.6999,4606.8,4606.7,0.1922]
[1758244236797,0.6999,4606.8,4606.7,0.5567]
[1758244237095,0.1179,4607.0,4606.8,0.39053]
[1758244237293,0.296,4607.0,4606.9,1.59637454]
[1758244238395,0.22,4607.4,4606.9,1.19267454]
[1758244238691,0.4213,4607.4,4607.3,0.4037]
[1758244238897,0.44678756,4607.4,4607.3,0.5567]
[1758244239097,0.74278756,4607.4,4607.3,0.5567]
[1758244239298,0.74278756,4607.4,4607.3,0.4037]
[1758244239500,0.74276818,4607.4,4607.3,0.4037]
[1758244239801,0.94536818,4607.4,4607.3,0.4037]
[1758244240597,0.94535274,4607.4,4607.3,0.4037]
[1758244240793,0.94535274,4607.4,4607.3,0.1922]
[1758244240998,0.3192,4607.0,4606.9,1.44337454]
[1758244241194,0.6152,4607.0,4606.9,1.44337454]
[1758244241397,0.296,4606.9,4606.6,3.2078]
[1758244241694,1.73957454,4606.7,4606.6,3.4]
[1758244242195,0.6999,4606.7,4606.6,3.4]
[1758244242396,0.6999,4606.7,4606.6,3.6115]
[1758244246806,0.6999,4606.7,4606.6,4.00205]
[1758244247306,0.6999,4606.7,4606.6,3.6115]
[1758244251407,0.4973,4606.7,4606.6,3.7645]
[1758244251810,0.296,4606.7,4606.6,4.15505]
[1758244252312,0.296,4606.7,4606.6,3.7645]
[1758244252512,0.4973,4606.7,4606.6,3.7645]
[1758244252912,0.4973,4606.7,4606.6,4.15505]
[1758244253114,0.4973,4606.7,4606.6,3.7645]
[1758244253314,0.6999,4606.7,4606.6,3.4]
[1758244254209,0.296,4606.7,4606.6,3.7645]
[1758244254812,0.2945,4606.9,4606.7,0.39054]
[1758244255112,0.2945,4606.9,4606.8,1.59937454]
[1758244255318,0.7154,4606.9,4606.8,0.4074]
[1758244255616,0.7154,4606.9,4606.8,0.2044]
[1758244256215,0.7154,4606.9,4606.8,0.5597]
[1758244256411,0.5036,4606.9,4606.8,0.5597]
[1758244256712,0.5036,4606.9,4606.8,0.95023]
[1758244256917,0.5036,4606.9,4606.8,0.5597]
[1758244259123,0.74827035,4606.9,4606.8,0.5597]
[1758244260622,0.95277035,4606.9,4606.8,0.4074]
[1758244261324,1.48996214,4606.9,4606.8,0.4074]
[1758244261924,1.48996214,4606.9,4606.8,0.95073]
[1758244262425,1.48996214,4606.9,4606.8,1.99040454]
[1758244262426,0.78186214,4606.9,4606.8,1.99040454]
[1758244262622,1.08916214,4606.9,4606.8,1.99040454]
[1758244263020,1.29946214,4606.9,4606.8,1.99040454]
[1758244263220,0.3073,4608.2,4606.9,11.71579]
[1758244263524,0.3073,4608.2,4608.1,0.39042]
[1758244263727,0.3073,4608.2,4608.1,0.61142]
[1758244266025,0.3073,4608.2,4608.1,4.61142]
[1758244266925,0.3073,4608.2,4608.1,5.65109454]
[1758244267121,0.1161,4609.0,4608.9,0.39035]
[1758244267422,0.1161,4609.0,4608.9,4.85882454]
[1758244267727,0.6337,4609.0,4608.9,4.85882454]
[1758244269430,0.4234,4609.0,4608.9,4.85882454]
[1758244273421,0.8382,4609.0,4608.9,3.4288]
[1758244273628,0.8382,4609.0,4608.9,4.46847454]
[1758244274523,0.8382,4609.0,4608.9,3.4288]
[1758244274725,0.8382,4609.0,4608.9,4.46847454]
[1758244276324,0.8382,4609.0,4608.9,4.85882454]
[1758244277832,0.8382,4609.0,4608.9,3.2078]
[1758244278028,0.8382,4609.0,4608.9,4.46847454]
[1758244278230,0.8382,4609.0,4608.9,0.221]
[1758244278433,0.8382,4609.0,4608.7,1.06127454]
[1758244278635,0.4148,4608.8,4608.7,1.06127454]
[1758244278931,0.7221,4608.8,4608.7,1.43004454]
[1758244282737,0.5176,4608.8,4608.7,1.43004454]
[1758244282936,0.3073,4608.8,4608.7,1.43004454]
[1758244284040,0.3073,4608.8,4608.7,0.39037]
[1758244284240,0.5176,4608.8,4608.7,0.39037]
[1758244290639,0.7221,4608.8,4608.7,0.39037]
[1758244291642,0.3073,4608.8,4608.7,0.39037]
[1758244292037,0.3073,4608.8,4608.7,5.66537]
[1758244292944,0.3073,4608.8,4608.7,0.39037]
[1758244293346,0.1161,4609.0,4608.9,0.39035]
[1758244293548,0.1161,4609.5,4609.4,0.1772]
[1758244293843,0.1161,4609.5,4609.4,3.77531]
[1758244294044,0.1161,4609.5,4609.4,4.81498454]
[1758244294245,0.5044,4609.5,4609.4,4.38207454]
[1758244295141,0.5044,4609.5,4609.4,4.77238454]
[1758244295548,0.799,4609.5,4609.4,4.77238454]
[1758244295749,0.799,4609.5,4609.4,4.62017696]
[1758244296047,0.799,4609.5,4609.4,4.22986696]
[1758244296647,0.5044,4609.5,4609.3,2.3888]
[1758244296844,0.799,4609.5,4609.4,0.88746696]
[1758244298850,0.799,4609.5,4609.4,4.48557696]
[1758244299241,0.799,4609.5,4609.4,4.62017696]
[1758244300051,0.6027,4609.5,4609.4,4.62017696]
[1758244300247,0.4107,4609.5,4609.4,4.66277696]
[1758244301152,0.6027,4609.5,4609.4,4.22986696]
[1758244301356,0.799,4609.5,4609.4,4.22986696]
[1758244301557,0.799,4609.5,4609.4,4.62017696]
[1758244303259,0.6027,4609.5,4609.4,4.62017696]
[1758244305763,0.4107,4609.5,4609.4,4.66277696]
[1758244307156,0.6027,4609.5,4609.4,4.62017696]
[1758244307661,0.6027,4609.5,4609.4,4.22986696]
[1758244308061,0.6027,4609.5,4609.4,4.62017696]
[1758244308454,0.6027,4609.5,4609.4,4.22986696]
[1758244308866,0.6027,4609.5,4609.4,4.62017696]
[1758244309865,0.6027,4609.5,4609.4,4.66277696]
[1758244310271,0.6027,4609.5,4609.4,4.27246696]
[1758244310569,0.6027,4609.5,4609.4,4.22986696]
[1758244311170,0.6027,4609.5,4609.4,4.62017696]
[1758244311567,0.6027,4609.5,4609.4,4.27246696]
[1758244311868,0.6027,4609.5,4609.4,4.22986696]
[1758244312770,0.6027,4609.5,4609.4,4.62017696]
[1758244313571,0.799,4609.5,4609.4,3.3424]
[1758244313767,0.799,4609.5,4609.4,4.22986696]
[1758244313968,0.799,4609.5,4609.4,4.62017696]
[1758244314269,0.799,4609.5,4609.4,4.22986696]
[1758244314570,0.799,4609.5,4609.4,4.62017696]
[1758244314771,0.799,4609.5,4609.4,4.22986696]
[1758244317570,1.0238194,4609.5,4609.4,4.22986696]
[1758244320677,0.6027,4609.5,4609.4,4.22986696]
[1758244320878,0.6027,4609.5,4609.4,4.27246696]
[1758244321178,0.82764096,4609.5,4609.4,4.27246696]
[1758244321378,0.4107,4609.5,4609.4,4.27246696]
[1758244321881,0.6038,4609.5,4609.4,4.22986696]
[1758244322182,1.35843242,4609.5,4609.4,4.22986696]
[1758244323379,1.13344331,4609.5,4609.4,4.22986696]
[1758244323775,0.94034331,4609.5,4609.4,4.66277696]
[1758244323981,0.52964331,4609.5,4609.4,4.66277696]
[1758244324278,0.82684331,4609.5,4609.4,4.66277696]
[1758244324478,0.95204331,4609.5,4609.4,4.66277696]
[1758244324873,0.95204331,4609.5,4609.4,4.27246696]
[1758244326178,0.95204331,4609.5,4609.4,4.22986696]
[1758244326381,1.14514331,4609.5,4609.4,4.22986696]
[1758244329887,1.14514331,4609.5,4609.4,4.62017696]
[1758244330083,0.82684331,4609.5,4609.4,4.66277696]
[1758244330590,0.95204331,4609.5,4609.4,4.66277696]
[1758244330787,0.95204331,4609.5,4609.4,4.27246696]
[1758244331394,1.14514331,4609.5,4609.4,4.22986696]
[1758244332196,0.6155,4609.5,4609.4,4.66277696]
[1758244333292,0.6155,4609.5,4609.4,4.27246696]
[1758244333494,0.6155,4609.5,4609.4,4.22986696]
[1758244334996,0.6155,4609.5,4609.4,4.62017696]
[1758244335799,0.6155,4609.5,4609.4,4.22986696]
[1758244336794,0.6155,4609.5,4609.4,1.02206696]
[1758244336994,0.6155,4609.5,4609.4,4.22986696]
[1758244337398,0.8171,4609.5,4609.4,4.22986696]
[1758244339199,0.6155,4609.5,4609.4,4.66277696]